fUSD/lending_fUSD_20250413
["ID","MTS","AMOUNT","RATE_DAILY","PERIOD"]
[357929352,1744582234971,-150.0,0.0001997,2]
[357929353,1744582234984,-467.81380764,0.00019973,2]
[357929354,1744582234997,-500.0,0.00019973,2]
[357929355,1744582235009,-622.07954752,0.00019973,2]
[357929356,1744582235022,-500.0,0.00019973,2]
[357929357,1744582235033,-150.0,0.00019973,2]
[357929358,1744582235044,-150.0,0.00019982,2]
[357929359,1744582235056,-150.0,0.00019983,2]
[357929360,1744582235066,-150.0,0.00019985,2]
[357929361,1744582235077,-3155.7983132,0.00019986,2]
[357929362,1744582235088,-2805.164186,0.00019986,2]
[357929363,1744582235098,-2454.5300588,0.00019986,2]
[357929364,1744582235109,-2103.8959316,0.00019986,2]
[357929365,1744582235119,-1753.2618044,0.00019986,2]
[357929366,1744582235129,-1402.6276772,0.00019986,2]
[357929367,1744582235139,-2610.4671948,0.00019986,2]
[357929368,1744582235149,-2330.1331903,0.00019986,2]
[357929369,1744582235159,-2049.7991857,0.00019986,2]
[357929370,1744582235169,-1769.4651812,0.00019986,2]
[357929371,1744582235179,-1489.1311767,0.00019986,2]
[357929372,1744582235189,-1208.7971721,0.00019986,2]
[357929373,1744582235199,-4396.81111205,0.00019986,2]
[357929374,1744582235211,-5865.59063688,0.00019986,2]
[357929375,1744582235239,-509.58839821,0.00019986,2]
[357929376,1744582235254,-1693.04786315,0.00019986,2]
[357929377,1744582235266,-1771.45420964,0.00019986,2]
[357929378,1744582235284,-307.00192807,0.00019986,2]
[357929379,1744582235296,-595.280943,0.00019986,2]
[357929380,1744582237949,-1050.0,0.00019986,2]
[357929381,1744582237961,-428.7000009,0.00019986,2]
[357929382,1744582237974,-15270.4496607,0.00019986,2]
[357929383,1744582237984,-3290.44244347,0.00019986,2]
[357929384,1744582237996,-2613.98379708,0.00019986,2]
[357929385,1744582238054,-450.0,0.00019986,2]
[357929386,1744582238066,-22109.10395925,0.00019986,2]
[357929387,1744582238076,-25039.135647,0.00019986,2]
[357929388,1744582238086,-21614.7410942,0.00019986,2]
[357929389,1744582238097,-18190.3465414,0.00019986,2]
[357929390,1744582238106,-14765.9519886,0.00019986,2]
[357929391,1744582238116,-21792.23807485,0.00019986,2]
[357929392,1744582238157,-444.07062839,0.00019986,2]
[357929394,1744582238345,-1101.3200136,0.00019986,2]
[357929402,1744582240031,-4490.87525298,0.00019986,2]
[357929403,1744582240043,-6418.84024308,0.00019986,2]
[357929404,1744582240053,-30628.5667081,0.00019986,2]
[357929405,1744582240064,-27009.7892034,0.00019986,2]
[357929406,1744582240075,-13477.33769101,0.00019986,2]
[357929407,1744582240087,-1254.29916289,0.00019986,2]
[357929408,1744582240100,-7000.0,0.00019986,2]
[357929409,1744582240243,-1659.3748447,0.00019986,2]
[357929410,1744582240254,-19772.2341938,0.00019986,2]
[357929411,1744582240264,-16153.4566891,0.00019986,2]
[357929412,1744582240275,-7408.8882902,0.00019986,2]
[357929413,1744582240285,-6639.5839116,0.00019986,2]
[357929414,1744582240295,-5870.2795329,0.00019986,2]
[357929415,1744582240305,-5100.9751542,0.00019986,2]
[357929416,1744582240315,-4331.6707756,0.00019986,2]
[357929417,1744582240325,-3562.3663969,0.00019986,2]
[357929418,1744582240334,-300.354218,0.00019986,2]
[357929419,1744582240344,-151.0,0.00019986,2]
[357929420,1744582240354,-151.0,0.00019986,2]
[357929421,1744582240363,-300.354218,0.00019986,2]
[357929422,1744582240373,-968.4719931,0.00019986,2]
[357929423,1744582240383,-867.9103817,0.00019986,2]
[357929424,1744582240392,-767.3487703,0.00019986,2]
[357929425,1744582240403,-666.787159,0.00019986,2]
[357929426,1744582240412,-566.2255476,0.00019986,2]
[357929427,1744582240422,-465.6639362,0.00019986,2]
[357929428,1744582240432,-201.344044,0.00019986,2]
[357929429,1744582240442,-151.0,0.00019986,2]
[357929430,1744582240451,-151.0,0.00019986,2]
[357929431,1744582240461,-152.872172,0.00019986,2]
[357929432,1744582240470,-151.752503,0.00019986,2]
[357929433,1744582240481,-151.0,0.00019986,2]
[357929434,1744582240491,-151.0,0.00019986,2]
[357929435,1744582240500,-151.0,0.00019986,2]
[357929436,1744582240510,-151.0,0.00019999,2]
[357929437,1744582240520,-150.0,0.00019999,2]
[357929438,1744582240529,-500.0,0.00019999,2]
[357929439,1744582240539,-500.0,0.00019999,2]
[357929440,1744582240548,-534.69228963,0.00019999,2]
[357929441,1744582240558,-335779.07301009,0.0002,2]
[357929442,1744582240568,-69553.48232369,0.0002,2]
[357929443,1744582240580,-1897.74363316,0.0002,2]
[357929444,1744582240592,-354.79,0.0002,2]
[357929445,1744582240604,-591.39,0.0002,2]
[357929447,1744582240618,-2290.7,0.0002,2]
[357929448,1744582240630,-493.80144382,0.0002,2]
[357929461,1744582242934,-514460.48058342,0.0002,2]
[357929462,1744582243033,-890.57598,0.0002,2]
[357929463,1744582243045,-1006.68,0.0002,2]
[357929464,1744582243058,-930.36,0.0002,2]
[357929465,1744582243069,-1073.5,0.0002,2]
[357929466,1744582243080,-546.38440035,0.0002,2]
[357929467,1744582243093,-972.78559965,0.0002,2]
[357929468,1744582243192,-1.9489179,0.0002,2]
[357929469,1744582243204,-987069.61703951,0.0002,2]
[357929473,1744582244593,-686.04743805,0.0002,2]
[357929474,1744582244606,-1050.0,0.0002,2]
[357929475,1744582244619,-7790.0172515,0.0002,2]
[357929476,1744582245880,-151.0,0.00019986,2]
[357929477,1744582245890,-9896.84317745,0.0002,2]
[357929478,1744582245901,-1626.90842461,0.0002,2]
[357929479,1744582246066,-412.51726968,0.0002,2]
[357929480,1744582246078,-2907.87283581,0.0002,2]
[357929481,1744582246091,-2983.76506243,0.0002,2]
[357929482,1744582246105,-4071.46576798,0.0002,2]
[357929485,1744582296951,-100000.0,0.0002,4]
[357929486,1744582301761,-37901.17814959,0.0002,4]
[357929487,1744582301797,-864.09156011,0.0002,20]
[357929488,1744582301824,-7900.0,0.0002,4]
[357929489,1744582301858,-21789.75626631,0.0002,4]
[357929490,1744582301890,-150.238847,0.0002,4]
[357929491,1744582301920,-150.238847,0.0002,4]
[357929492,1744582301954,-150.238847,0.0002,4]
[357929493,1744582301983,-150.238847,0.0002,4]
[357929494,1744582302019,-221.56109317,0.0002,4]
[357929495,1744582302055,-150.0,0.0002,4]
[357929496,1744582302085,-157.6374341,0.0002,4]
[357929497,1744582302113,-188.41536559,0.0002,4]
[357929498,1744582302141,-159.42208416,0.0002,4]
[357929499,1744582302167,-150.0,0.0002,4]
[357929500,1744582302194,-150.0,0.0002,4]
[357929501,1744582469798,331.96579,0.000248,34]
[357929502,1744582558283,1333.0,0.00026137,120]
[357929503,1744582775140,331.96579,0.000247,34]
[357929504,1744582775215,331.96579,0.0002345,31]
[357929505,1744582827672,-771.21759371,0.00017727,2]
[357929506,1744582847803,-235.502171,0.00017727,2]
[357929507,1744582864417,-61.28023529,0.00017727,2]
[357929508,1744582864444,-118.83065255,0.00018566,2]
[357929509,1744582877794,-123.48506345,0.00018566,2]
[357929510,1744582877821,-112.01710755,0.00018659,2]
[357929511,1744582887729,-250.0,0.00018659,2]
[357929512,1744582896230,1839.3,0.00016774,2]
[357929513,1744582897212,-152.58,0.00018659,2]
[357929514,1744583040116,335.0,0.0001742,2]
[357929515,1744583040419,335.0,0.00017,2]
[357929516,1744583055803,-154.48,0.0001784,2]
[357929517,1744583057539,-180.52,0.0001784,2]
[357929518,1744583057566,-134.04722534,0.00018035,2]
[357929519,1744583071211,-174.19,0.00017944,2]
[357929520,1744583105455,219.34548224,0.0002,4]
[357929521,1744583118678,-61.312171,0.00017944,2]
[357929522,1744583118701,-20.43277466,0.00018035,2]
[357929523,1744583118726,-137.39505434,0.00018189,2]
[357929524,1744583142189,150.0,0.0002,4]
[357929525,1744583148499,-62.60494566,0.00018189,2]
[357929526,1744583148527,-237.39505434,0.0001826,2]
[357929527,1744583153554,-97.60494566,0.0001826,2]
[357929528,1744583153579,-64.41505434,0.00018566,2]
[357929529,1744583171304,186.53121193,0.0002,4]
[357929531,1744583177281,-220.36884451,0.00017944,2]
[357929532,1744583181976,-150.51640522,0.00017944,2]
[357929533,1744583207920,150.0,0.0002,4]
[357929534,1744583220995,-174.02666057,0.00017944,2]
[357929535,1744583234295,150.0,0.0002,4]
[357929536,1744583239096,-169.86617587,0.00017944,2]
[357929537,1744583244127,-201.77327109,0.00017944,2]
[357929538,1744583273998,-525.98152532,0.0001794,2]
[357929539,1744583284223,-238.38046544,0.0001794,2]
[357929540,1744583284249,-11.61953456,0.00017942,2]
[357929543,1744583297712,-238.38046544,0.00017942,2]
[357929544,1744583297735,-30.72502129,0.00017944,2]
[357929545,1744583324653,5454.69812851,0.00015,5]
[357929546,1744583332957,-278.67768015,0.00017854,2]
[357929547,1744583337966,-159.87000012,0.00017854,2]
[357929548,1744583341224,1333.0,0.00026137,120]
[357929549,1744583343366,-80.55780673,0.00017854,2]
[357929550,1744583343398,-109.09817328,0.00017931,2]
[357929553,1744583351068,-1643.47182672,0.00017931,2]
[357929555,1744583351114,-2372.80376655,0.00017944,2]
[357929556,1744583351190,-523.65311096,0.00017944,2]
[357929559,1744583351784,-696.10713414,0.00017931,2]
[357929560,1744583354111,-1388.73935844,0.00017931,2]
[357929562,1744583376435,-4107.07416735,0.00017931,2]
[357929566,1744583386037,331.96579,0.0001993,23]
[357929570,1744583402767,2000.0,0.0002,4]
[357929581,1744583432176,-2363.524173,0.00017841,2]
[357929582,1744583432186,-154.21934007,0.00017931,2]
[357929583,1744583432197,-250.0,0.00017938,2]
[357929584,1744583432207,-172.45402318,0.00017944,2]
[357929585,1744583432217,-1852.42,0.0001795,2]
[357929586,1744583432227,-167.97956071,0.0001804,2]
[357929587,1744583432237,-150.0,0.00018103,2]
[357929588,1744583432252,-1768.0,0.00018119,2]
[357929589,1744583432262,-200.0,0.0001814,2]
[357929590,1744583432272,-250.0,0.00018152,2]
[357929591,1744583432283,-553.40289245,0.00018659,2]
[357929592,1744583432294,-206.16,0.00018665,2]
[357929593,1744583432304,-335.0,0.0001868,2]
[357929594,1744583432314,-300.0,0.00018708,2]
[357929595,1744583432323,-300.0,0.00018708,2]
[357929596,1744583432333,-23900.0,0.00018709,2]
[357929597,1744583432343,-2095.55,0.00018713,2]
[357929598,1744583432353,-989.4,0.00018747,2]
[357929599,1744583432362,-3661.51,0.0001876,2]
[357929600,1744583432372,-1000.0,0.0001879,2]
[357929601,1744583432386,-500.0,0.00018818,2]
[357929602,1744583432396,-250.0,0.00018838,2]
[357929603,1744583432405,-316.01,0.00018838,2]
[357929604,1744583432415,-1519.44,0.00018854,2]
[357929605,1744583432426,-5572.03,0.00018862,2]
[357929606,1744583432436,-660.0,0.00018989,2]
[357929607,1744583432446,-8600.48413041,0.0001899,2]
[357929608,1744583432455,-270.9,0.00019,2]
[357929609,1744583432465,-270.9,0.00019,2]
[357929610,1744583432476,-270.9,0.00019,2]
[357929611,1744583432486,-270.9,0.00019,2]
[357929613,1744583432497,-270.9,0.00019,2]
[357929615,1744583432506,-250.0,0.00019,2]
[357929617,1744583432515,-250.0,0.00019,2]
[357929619,1744583432525,-288.31062248,0.00019,2]
[357929620,1744583432534,-532.0718147,0.00019,2]
[357929621,1744583432544,-24621.80474732,0.00019,2]
[357929622,1744583437976,-20731.68377281,0.00019,2]
[357929623,1744583437986,-13946.59473201,0.00019,2]
[357929624,1744583437997,-284.82408366,0.00019,2]
[357929625,1744583438015,-154.48,0.00019037,2]
[357929626,1744583438032,-1839.3,0.00019038,2]
[357929627,1744583438042,-335.0,0.000191,2]
[357929628,1744583438051,-500.0,0.00019123,2]
[357929629,1744583438060,-163.333702,0.00019178,2]
[357929630,1744583438069,-3906.210044,0.00019178,2]
[357929631,1744583438079,-471.23532985,0.00019178,2]
[357929632,1744583438088,-500.0,0.00019178,2]
[357929633,1744583438099,-563.71290644,0.00019178,2]
[357929634,1744583438108,-550.45,0.00019178,2]
[357929635,1744583438118,-500.0,0.00019178,2]
[357929636,1744583438127,-500.0,0.00019178,2]
[357929637,1744583438145,-524.27106991,0.00019178,2]
[357929638,1744583438157,-641.15,0.00019178,2]
[357929639,1744583438166,-615.21,0.00019178,2]
[357929640,1744583438176,-500.0,0.00019178,2]
[357929641,1744583438185,-586.04,0.00019178,2]
[357929642,1744583438195,-500.0,0.00019178,2]
[357929643,1744583438204,-500.0,0.00019178,2]
[357929644,1744583438214,-500.0,0.00019178,2]
[357929645,1744583438223,-534.95035453,0.00019178,2]
[357929646,1744583438233,-500.0,0.00019178,2]
[357929647,1744583438243,-500.0,0.00019178,2]
[357929648,1744583438252,-500.0,0.00019178,2]
[357929649,1744583438262,-500.0,0.00019178,2]
[357929650,1744583438271,-500.0,0.00019178,2]
[357929651,1744583438281,-500.0,0.00019178,2]
[357929652,1744583438291,-500.0,0.00019178,2]
[357929653,1744583438301,-500.0,0.00019178,2]
[357929654,1744583438311,-500.0,0.00019178,2]
[357929655,1744583438321,-524.31162265,0.00019178,2]
[357929678,1744583438563,-526.27776603,0.00019178,2]
[357929680,1744583438574,-516.79802631,0.00019178,2]
[357929682,1744583438588,-2000.0,0.00019178,2]
[357929685,1744583438597,-527.44519239,0.00019178,2]
[357929687,1744583438607,-500.0,0.00019178,2]
[357929689,1744583438617,-507.49,0.00019178,2]
[357929690,1744583438627,-500.0,0.00019178,2]
[357929693,1744583438636,-505.87,0.00019178,2]
[357929695,1744583438646,-500.0,0.00019178,2]
[357929697,1744583438655,-500.0,0.00019178,2]
[357929699,1744583438665,-500.0,0.00019178,2]
[357929701,1744583438674,-500.0,0.00019178,2]
[357929703,1744583438684,-500.0,0.00019178,2]
[357929705,1744583438693,-500.0,0.00019178,2]
[357929707,1744583438703,-500.0,0.00019178,2]
[357929709,1744583438713,-524.36265768,0.00019178,2]
[357929711,1744583438723,-500.0,0.00019178,2]
[357929713,1744583438734,-4578.5,0.00019178,2]
[357929715,1744583438744,-500.0,0.00019178,2]
[357929717,1744583438759,-514.48353842,0.00019178,2]
[357929719,1744583438769,-577.8393722,0.00019178,2]
[357929721,1744583438779,-500.0,0.00019178,2]
[357929723,1744583438788,-500.0,0.00019178,2]
[357929724,1744583438798,-500.0,0.00019178,2]
[357929726,1744583438807,-500.0,0.00019178,2]
[357929727,1744583438816,-554.48221949,0.00019178,2]
[357929728,1744583438826,-500.0,0.00019178,2]
[357929729,1744583438836,-563.04050277,0.00019178,2]
[357929730,1744583438845,-500.0,0.00019178,2]
[357929731,1744583438855,-500.0,0.00019178,2]
[357929732,1744583438864,-500.0,0.00019178,2]
[357929733,1744583438874,-500.0,0.00019178,2]
[357929734,1744583438884,-500.0,0.00019178,2]
[357929735,1744583438894,-585.37088748,0.00019178,2]
[357929736,1744583438903,-635.15,0.00019178,2]
[357929737,1744583438913,-500.0,0.00019178,2]
[357929738,1744583438926,-500.0,0.00019178,2]
[357929739,1744583438936,-500.0,0.00019178,2]
[357929740,1744583438946,-500.0,0.00019178,2]
[357929741,1744583438955,-500.0,0.00019178,2]
[357929742,1744583438965,-619.37,0.00019178,2]
[357929743,1744583438975,-500.0,0.00019178,2]
[357929744,1744583438985,-520.83,0.00019178,2]
[357929745,1744583438995,-508.23,0.00019178,2]
[357929746,1744583439005,-579.21,0.00019178,2]
[357929747,1744583439015,-500.0,0.00019178,2]
[357929748,1744583439024,-500.0,0.00019178,2]
[357929749,1744583439034,-500.0,0.00019178,2]
[357929750,1744583439044,-540.93586846,0.00019178,2]
[357929751,1744583439054,-508.92639672,0.00019178,2]
[357929752,1744583439064,-500.0,0.00019178,2]
[357929753,1744583439074,-619.02398142,0.00019178,2]
[357929754,1744583439085,-383.33872828,0.00019178,2]
[357929755,1744583439095,-500.0,0.00019178,2]
[357929756,1744583439105,-500.0,0.00019178,2]
[357929757,1744583439116,-500.0,0.00019178,2]
[357929758,1744583439126,-528.47024692,0.00019178,2]
[357929759,1744583439137,-500.0,0.00019178,2]
[357929760,1744583439148,-500.0,0.00019178,2]
[357929761,1744583439157,-564.99,0.00019178,2]
[357929762,1744583439167,-167.61,0.00019186,2]
[357929763,1744583439177,-175.1448,0.00019352,2]
[357929764,1744583439187,-12201.8121,0.00019352,2]
[357929765,1744583439196,-307.8654452,0.00019399,2]
[357929766,1744583439206,-542.74,0.00019452,2]
[357929767,1744583439215,-602.22,0.00019452,2]
[357929768,1744583439225,-345.3,0.00019452,2]
[357929769,1744583439234,-2000.0,0.00019452,2]
[357929770,1744583439243,-500.0,0.00019452,2]
[357929771,1744583439254,-535.69,0.00019452,2]
[357929772,1744583439267,-500.0,0.00019452,2]
[357929773,1744583439277,-500.0,0.00019452,2]
[357929774,1744583439287,-155.13,0.00019452,2]
[357929775,1744583439299,-376.78,0.00019452,2]
[357929776,1744583439309,-500.0,0.00019452,2]
[357929777,1744583439319,-4578.5,0.00019452,2]
[357929778,1744583439328,-218.26,0.00019452,2]
[357929779,1744583439338,-194.56,0.00019452,2]
[357929780,1744583439348,-500.0,0.00019452,2]
[357929781,1744583439358,-500.0,0.00019452,2]
[357929782,1744583439369,-500.0,0.00019452,2]
[357929783,1744583439380,-270.35,0.00019452,2]
[357929784,1744583439394,-161.65,0.00019452,2]
[357929785,1744583439404,-201.57135723,0.00019452,2]
[357929786,1744583439414,-254.37,0.00019452,2]
[357929787,1744583439424,-486.37,0.00019452,2]
[357929788,1744583439435,-540.79,0.00019452,2]
[357929789,1744583439445,-520.83,0.00019452,2]
[357929790,1744583439455,-579.21,0.00019452,2]
[357929791,1744583439466,-500.0,0.00019452,2]
[357929792,1744583439475,-322.83,0.00019452,2]
[357929793,1744583439485,-501.03,0.00019452,2]
[357929794,1744583439495,-324.41,0.00019452,2]
[357929795,1744583439505,-359.57,0.00019452,2]
[357929796,1744583439515,-318.46,0.00019452,2]
[357929797,1744583439525,-234.83,0.00019452,2]
[357929798,1744583439535,-500.0,0.00019452,2]
[357929799,1744583439544,-500.0,0.00019479,2]
[357929800,1744583439554,-335.0,0.0001953,2]
[357929801,1744583439564,-1068.0,0.00019592,2]
[357929802,1744583439573,-191.93007446,0.00019596,2]
[357929803,1744583439583,-500.0,0.00019625,2]
[357929804,1744583439593,-109582.1336,0.00019626,2]
[357929805,1744583439602,-669.80857617,0.00019696,2]
[357929806,1744583439612,-250.0,0.00019724,2]
[357929807,1744583439622,-2000.0,0.00019726,2]
[357929808,1744583439631,-297.93,0.00019726,2]
[357929809,1744583439641,-221.6,0.00019726,2]
[357929810,1744583439651,-500.0,0.00019726,2]
[357929811,1744583439662,-500.0,0.00019726,2]
[357929812,1744583439672,-4578.5,0.00019726,2]
[357929813,1744583439682,-500.0,0.00019726,2]
[357929814,1744583439693,-500.0,0.00019726,2]
[357929815,1744583439703,-500.0,0.00019726,2]
[357929816,1744583439713,-520.83,0.00019726,2]
[357929817,1744583439724,-579.21,0.00019726,2]
[357929818,1744583439734,-516.29,0.00019726,2]
[357929819,1744583439744,-500.0,0.00019726,2]
[357929820,1744583439756,-150.0,0.00019728,2]
[357929821,1744583439766,-250.0,0.00019734,2]
[357929822,1744583439776,-150.0,0.00019745,2]
[357929823,1744583439789,-150.0,0.00019751,2]
[357929824,1744583439799,-150.0,0.00019756,2]
[357929825,1744583439809,-150.0,0.00019756,2]
[357929826,1744583439819,-150.0,0.00019758,2]
[357929827,1744583439829,-150.0,0.00019763,2]
[357929828,1744583439839,-150.0,0.0001977,2]
[357929829,1744583439850,-150.0,0.00019771,2]
[357929830,1744583439861,-150.0,0.00019779,2]
[357929831,1744583439871,-150.0,0.00019781,2]
[357929832,1744583439881,-150.0,0.00019782,2]
[357929833,1744583439892,-249.93328278,0.00019783,2]
[357929834,1744583439901,-150.0,0.00019786,2]
[357929835,1744583439911,-704.0413,0.000198,2]
[357929836,1744583439922,-256.4154,0.000198,2]
[357929837,1744583439932,-42591.3990569,0.000198,2]
[357929838,1744583439943,-150.0,0.00019801,2]
[357929839,1744583439954,-150.0,0.00019803,2]
[357929840,1744583439963,-150.0,0.00019811,2]
[357929841,1744583439973,-150.0,0.00019815,2]
[357929842,1744583439983,-150.0,0.0001983,2]
[357929843,1744583439993,-150.0,0.00019832,2]
[357929844,1744583440003,-150.0,0.00019833,2]
[357929845,1744583440013,-150.0,0.00019836,2]
[357929846,1744583440023,-150.0,0.00019846,2]
[357929847,1744583440033,-150.0,0.00019876,2]
[357929848,1744583440043,-6106.9982,0.00019886,2]
[357929849,1744583440053,-299.439,0.0001989,2]
[357929850,1744583440063,-150.0,0.00019899,2]
[357929851,1744583440073,-408.182,0.000199,2]
[357929852,1744583440083,-5000.0,0.000199,2]
[357929853,1744583440092,-191.93007446,0.000199,2]
[357929854,1744583440102,-150.0,0.00019916,2]
[357929855,1744583440113,-150.0,0.00019929,2]
[357929856,1744583440123,-150.0,0.00019932,2]
[357929857,1744583440133,-150.0,0.00019945,2]
[357929858,1744583440143,-335.0,0.0001995,2]
[357929859,1744583440153,-150.0,0.00019962,2]
[357929860,1744583440162,-150.0,0.00019964,2]
[357929861,1744583440172,-150.0,0.0001997,2]
[357929862,1744583440181,-500.0,0.00019973,2]
[357929863,1744583440191,-500.0,0.00019973,2]
[357929864,1744583440201,-339.480046,0.00019982,2]
[357929865,1744583440211,-150.0,0.00019984,2]
[357929866,1744583440220,-7858.0399344,0.00019986,2]
[357929867,1744583440230,-7858.0399344,0.00019986,2]
[357929868,1744583440240,-7858.0399344,0.00019986,2]
[357929869,1744583440250,-7858.0399344,0.00019986,2]
[357929870,1744583440260,-769.79310807,0.00019986,2]
[357929871,1744583440275,-7088.24682633,0.00019986,2]
[357929872,1744583440285,-7858.0399344,0.00019986,2]
[357929873,1744583440294,-1355.6396382,0.00019986,2]
[357929874,1744583440304,-1482.6702002,0.00019986,2]
[357929875,1744583440313,-1609.7007622,0.00019986,2]
[357929876,1744583440323,-1736.7313242,0.00019986,2]
[357929877,1744583440332,-1863.7618862,0.00019986,2]
[357929878,1744583440342,-1990.7924482,0.00019986,2]
[357929879,1744583440351,-44432.8763973,0.00019986,2]
[357929880,1744583440361,-40674.1956057,0.00019986,2]
[357929881,1744583440371,-13418.86228237,0.00019986,2]
[357929882,1744583440409,-10662.18662049,0.00019986,2]
[357929892,1744583442370,-159.79402764,0.00019986,2]
[357929893,1744583442557,-4170.75,0.00019986,2]
[357929917,1744583446265,-500.0,0.00019178,2]
[357929918,1744583446275,-3674.18169999,0.00019986,2]
[357929920,1744583446286,-418.04399899,0.00019986,2]
[357929928,1744583616060,168.58028,0.000196,5]
[357929929,1744583935601,165.98289,0.00019986,23]
[357929930,1744583993733,1673.64,0.00017003,2]
[357929931,1744584124197,1333.0,0.00026137,120]
[357929932,1744584304705,217.15202741,0.0002,4]
[357929933,1744584342606,150.0,0.0002,4]
[357929934,1744584373432,184.66589981,0.0002,4]
[357929935,1744584411743,150.0,0.0002,4]
[357929936,1744584439813,150.0,0.0002,4]
[357929941,1744584605910,2000.0,0.0002,4]
[357929943,1744584632208,-494.7767235,0.00018864,2]
[357929944,1744584632221,-57.0332765,0.00018864,2]
[357929945,1744584632232,-250.0,0.00019,2]
[357929946,1744584632243,-250.0,0.00019,2]
[357929947,1744584632253,-1000.0,0.00019058,2]
[357929948,1744584632264,-1253.67,0.00019058,2]
[357929949,1744584632274,-250.0,0.00019112,2]
[357929950,1744584632284,-250.0,0.00019129,2]
[357929951,1744584632296,-300.0,0.00019177,2]
[357929952,1744584632306,-300.0,0.00019177,2]
[357929953,1744584632316,-500.0,0.00019178,2]
[357929954,1744584632327,-705.49284402,0.00019178,2]
[357929955,1744584632338,-500.0,0.00019178,2]
[357929956,1744584632348,-500.0,0.00019178,2]
[357929957,1744584632360,-500.0,0.00019178,2]
[357929958,1744584632370,-300.61256935,0.00019178,2]
[357929959,1744584632381,-522.95816336,0.00019178,2]
[357929960,1744584632392,-500.0,0.00019178,2]
[357929961,1744584632402,-5971.52,0.00019178,2]
[357929962,1744584632413,-500.0,0.00019178,2]
[357929963,1744584632423,-500.0,0.00019178,2]
[357929964,1744584632434,-500.0,0.00019178,2]
[357929967,1744584632445,-595.13633689,0.00019178,2]
[357929968,1744584632455,-201.74,0.00019178,2]
[357929971,1744584632467,-506.81,0.00019178,2]
[357929973,1744584632478,-250.0,0.00019257,2]
[357929975,1744584632488,-1088.94051957,0.00019267,2]
[357929979,1744584632515,-584.69948043,0.00019267,2]
[357929981,1744584632526,-230.8990839,0.00019399,2]
[357929983,1744584632536,-500.0,0.00019452,2]
[357929985,1744584632546,-465.73,0.00019452,2]
[357929987,1744584632557,-500.0,0.00019452,2]
[357929989,1744584632567,-390.49,0.00019452,2]
[357929991,1744584632578,-500.0,0.00019452,2]
[357929993,1744584632589,-5971.52,0.00019452,2]
[357929997,1744584632599,-500.0,0.00019452,2]
[357930000,1744584632609,-435.68,0.00019452,2]
[357930003,1744584632619,-500.0,0.00019452,2]
[357930006,1744584632630,-506.81,0.00019452,2]
[357930009,1744584632640,-500.0,0.00019507,2]
[357930012,1744584632650,-165.74,0.00019518,2]
[357930015,1744584632661,-500.0,0.00019726,2]
[357930017,1744584632671,-273.59,0.00019726,2]
[357930019,1744584632682,-500.0,0.00019726,2]
[357930023,1744584632692,-5971.52,0.00019726,2]
[357930025,1744584632703,-500.0,0.00019726,2]
[357930027,1744584632714,-500.0,0.00019726,2]
[357930029,1744584632724,-506.81,0.00019726,2]
[357930031,1744584632734,-239.551,0.00019881,2]
[357930032,1744584632744,-1578.56846559,0.000199,2]
[357930033,1744584633257,-302.57016797,0.000199,2]
[357930035,1744584638450,-500.0,0.00019178,2]
[357930036,1744584638460,-428.50505385,0.00019452,2]
[357930037,1744584638469,-2905.49920224,0.000199,2]
[357930038,1744584638569,-213.3621642,0.000199,2]